Workbook

Sheet Helligdage
A1: Årstal | B1: =Tidsreg!K1 -> 2022 | D1: Type | H1: X | I1: Årstal | J1: =B1 -> 2022
A2: Nytårsdag | B2: =DATE(B1,1,1) -> 2017-12-31 | D2: Fast | H2: A | I2: Rest | J2: =MOD(År,19) -> 8
A3: Palmesøndag | B3: =B6-7 -> 2018-04-09 | D3: Beregnet
A4: Skærtorsdag | B4: =L24 -> 2018-04-13 | D4: Beregnet | H4: B | I4: Heltal | J4: =INT(År/100) -> 20
A5: Langfredag | B5: =L25 -> 2018-04-14 | D5: Beregnet | H5: C | I5: Rest | J5: =MOD(År,100) -> 22
A6: Påskedag | B6: =L26 -> 2018-04-16 | D6: Beregnet | H6: D | I6: Heltal | J6: =INT(J4/4) -> 5
A7: 2. påskedag | B7: =L27 -> 2018-04-17 | D7: Beregnet | H7: E | I7: Rest | J7: =MOD(J4,4) -> 0
A8: 1. maj | B8: =DATE(B1,5,1) -> 2018-04-30 | D8: Fast
A9: Store Bededag | B9: =L31 -> 2018-05-12 | D9: Beregnet | H9: F | I9: Heltal | J9: =INT((J4+8)/25) -> 1
A10: Kristi Himmelfart | B10: =L34 -> 2018-05-25 | D10: Beregnet | H10: G | I10: Heltal | J10: =INT((J4-J9+1)/3) -> 6
A11: Pinsedag | B11: =L36 -> 2018-06-04 | D11: Beregnet | H11: H | I11: Heltal | J11: =MOD(19*J2+J4-J6-J10+15,30) -> 26
A12: 2. pinsedag | B12: =L37 -> 2018-06-05 | D12: Beregnet | H12: J | I12: Heltal | J12: =INT(J5/4) -> 5
A13: Grundlovsdag | B13: =DATE(B1,6,5) -> 2018-06-04 | D13: Fast | H13: K | I13: Rest | J13: =MOD(J5,4) -> 2
A14: Juleaften | B14: =DATE(B1,12,24) -> 2018-12-23 | D14: Fast | H14: L | I14: Rest | J14: =MOD(32+2*J7+2*J12-J11-J13,7) -> 0
A15: 1. juledag | B15: =B14+1 -> 2018-12-24 | D15: Fast | H15: M | I15: Heltal | J15: =INT((J2+11*J11+22*J14)/451) -> 0
A16: 2. juledag | B16: =B14+2 -> 2018-12-25 | D16: Fast | H16: N | I16: Heltal | J16: =INT((J11+J14-7*J15+114)/31) -> 4
A17: Nytårsaftens dag | B17: =DATE(B1,12,31) -> 2018-12-30 | D17: Fast | H17: P | I17: Rest | J17: =MOD(J11+J14-7*J15+114,31) -> 16
A18: Mors dag | H18: Q | I18: Formel | J18: =(J16-3)*31+J17-20 -> 27
I20: Dag | J20: =J17+1 -> 17
I21: Måned | J21: =J16 -> 4
K23: Mellemregning | M23: Diff ift Påskesøndag
I24: Skærtorsdag | K24: =K26-3 -> 2018-04-13 | L24: =L26-3 -> 2018-04-13 | M24: -3
I25: Langfredag | K25: =K26-2 -> 2018-04-14 | L25: =L26-2 -> 2018-04-14 | M25: -2
I26: Påskedag | K26: =DATE(År,J21,J20) -> 2018-04-16 | L26: =DATE(År,J21,J20) -> 2018-04-16
I27: 2. påskedag | K27: =K26+1 -> 2018-04-17 | L27: =L26+1 -> 2018-04-17 | M27: 1
I28: 1. s.e. påske | K28: =K26+7 -> 2018-04-23
I29: 2. s.e. påske | K29: =K28+7 -> 2018-04-30
I30: 3. s.e. påske | K30: =K29+7 -> 2018-05-07
I31: Store Bededag | K31: =K30+5 -> 2018-05-12 | L31: =L26+26 -> 2018-05-12 | M31: 26
I32: 4. s.e. påske | K32: =K30+7 -> 2018-05-14
I33: 5. s.e. påske | K33: =K32+7 -> 2018-05-21
I34: Kristi Himmelfart | K34: =K33+4 -> 2018-05-25 | L34: =L26+39 -> 2018-05-25 | M34: 39
I35: 6.s.e. påske | K35: =K33+7 -> 2018-05-28
I36: Pinsedag | K36: =K35+7 -> 2018-06-04 | L36: =L26+49 -> 2018-06-04 | M36: 49
I37: 2. pinsedag | K37: =K36+1 -> 2018-06-05 | L37: =L26+50 -> 2018-06-05 | M37: 50

Sheet Backend
B2: År: | C2: =Tidsreg!K1 -> 2022 | G2: Mødetider | M2: Fraværsgrunde. Hvis der tilføjes mere end rammen viser, skal der aktivt ændres i registreringsarket (Ark2)
B3: Navn: | G3: Normtid: | H3: Timer | I3: Efter pause | J3: Timer | K3: Efter pause | M3: Flex-fri | O3: Fravær ændres i Data -> DavaValidering -> vælg Datavalidering i listen.
B4: Normaltimer: | C4: 37 | G4: Ugedag | H4: Lige uger | I4: Sum | J4: Ulige uger | K4: Sum | M4: Ferie med løn
B5: =C2-1 -> 2021 | C5: =D5/24 -> -0.1754166667 | D5: -4.21 | F5: 1 | G5: Mandag | H5: 07:24:00 | I5: =IF(H5>K14,H5-K13,H5) -> 0.3083333333 | J5: 07:24:00 | K5: =IF(J5>K14,J5-K13,J5) -> 0.3083333333 | M5: Feriefridag
B6: =C2-1 -> 2021 | C6: 3.203472222 | F6: 2 | G6: Tirsdag | H6: 07:24:00 | I6: =IF(H6>K14,H6-K13,H6) -> 0.3083333333 | J6: 07:24:00 | K6: =IF(J6>K14,J6-K13,J6) -> 0.3083333333 | M6: Sygdom
B7: Helligdage der falder på hverdage: | C7: =SUM(C10:C25) -> 9 | F7: 3 | G7: Onsdag | H7: 07:24:00 | I7: =IF(H7>K14,H7-K13,H7) -> 0.3083333333 | J7: 07:24:00 | K7: =IF(J7>K14,J7-K13,J7) -> 0.3083333333 | M7: Hjemmearbejdsdag
F8: 4 | G8: Torsdag | H8: 07:24:00 | I8: =IF(H8>K14,H8-K13,H8) -> 0.3083333333 | J8: 07:24:00 | K8: =IF(J8>K14,J8-K13,J8) -> 0.3083333333 | M8: Kursus/Uddannelse
B9: Årets helligdage og faste fridage | F9: 5 | G9: Fredag | H9: 07:24:00 | I9: =IF(H9>K14,H9-K13,H9) -> 0.3083333333 | J9: 07:24:00 | K9: =IF(J9>K14,J9-K13,J9) -> 0.3083333333 | M9: Andet (Skriv under bemærkninger)
B10: Nytårsdag | C10: =IF(WEEKDAY(D10,2)<6,1,0) -> 1 | D10: =[1]Helligdage!B2 -> 2016-12-31 | F10: 6 | G10: Lørdag | H10: 00:00:00 | I10: =IF(H10>K14,H10-K13,H10) -> 0 | J10: 00:00:00 | K10: =IF(J10>K14,J10-K13,J10) -> 0 | M10: Tjenestefri
B11: Palmesøndag | C11: =IF(WEEKDAY(D11,2)<6,1,0) -> 0 | D11: =[1]Helligdage!B3 -> 2017-03-27 | F11: 7 | G11: Søndag | H11: 00:00:00 | I11: =IF(H11>K14,H11-K13,H11) -> 0 | J11: 00:00:00 | K11: =IF(J11>K14,J11-K13,J11) -> 0 | M11: Ferie uden løn
B12: Skærtorsdag | C12: 1 | D12: =[1]Helligdage!B4 -> 2017-03-31 | G12: I alt: | H12: =SUM(H5:H11) -> 1.541666667 | I12: =SUM(I5:I11) -> 1.541666667 | J12: =SUM(J5:J11) -> 1.541666667 | K12: =SUM(K5:K11) -> 1.541666667 | M12: Omsorgsdag
B13: Langfredag | C13: 1 | D13: =[1]Helligdage!B5 -> 2017-04-01 | G13: Selvbetalte | H13: Minutter selvbetalt frokost | K13: 0 | M13: Barns sygedag
B14: Påskedag | C14: 0 | D14: =[1]Helligdage!B6 -> 2017-04-03 | G14: pauser | H14: Medregn ikke hvis arbejdsdag < eller = | K14: 0 | M14: Barsel/Orlov
B15: 2. Påskedag | C15: 1 | D15: =[1]Helligdage!B7 -> 2017-04-04
B16: 1. maj | C16: 0 | D16: =[1]Helligdage!B8 -> 2017-04-30
B17: Store Bededag | C17: 1 | D17: =[1]Helligdage!B9 -> 2017-04-29 | G17: Telefontider
B18: Kristi Himmelfartsdag | C18: 1 | D18: =[1]Helligdage!B10 -> 2017-05-12 | G18: Normtid: | H18: Timer | I18: Efter pause | J18: Timer | K18: Efter pause
B19: Pinsedag | C19: 0 | D19: =[1]Helligdage!B11 -> 2017-05-22 | G19: Ugedag | H19: Lige uger | I19: Sum | J19: Ulige uger | K19: Sum
B20: 2. Pinsedag | C20: 1 | D20: =[1]Helligdage!B12 -> 2017-05-23 | F20: 1 | G20: Mandag | H20: 08:00:00 | I20: =H20*0.8 -> 0.2666666667 | J20: 08:00:00 | K20: =J20*0.8 -> 0.2666666667
B21: Grundlovsdag | C21: 0 | D21: =[1]Helligdage!B13 -> 2017-06-04 | F21: 2 | G21: Tirsdag | H21: 01:30:00 | I21: =H21*0.8 -> 0.05 | J21: 01:30:00 | K21: =J21*0.8 -> 0.05
B22: Juleaftensdag | C22: 1 | D22: =[1]Helligdage!B14 -> 2017-12-23 | F22: 3 | G22: Onsdag | H22: 07:00:00 | I22: 0.2333333333 | J22: 07:00:00 | K22: 0.2333333333 | N22: 0.03263888889
B23: Juledag | C23: 0 | D23: =[1]Helligdage!B15 -> 2017-12-24 | F23: 4 | G23: Torsdag | H23: 07:00:00 | I23: 0.2333333333 | J23: 07:00:00 | K23: 0.2333333333 | N23: =N22*24 -> 0.7833333333 | O23: =N23*1.25 -> 0.9791666667
B24: 2. Juledag | C24: 0 | D24: =[1]Helligdage!B16 -> 2017-12-25 | F24: 5 | G24: Fredag | H24: 06:00:00 | I24: 0.2 | J24: 06:00:00 | K24: 0.2
B25: Nytårsaftensdag | C25: =IF(WEEKDAY(D25,2)<6,1,0) -> 1 | D25: =[1]Helligdage!B17 -> 2017-12-30 | F25: 6 | G25: Lørdag | H25: 00:00:00 | I25: 0 | J25: 00:00:00 | K25: 0 | M25: Tid i tt:mm : | N25: 26.95 | O25: =N25*1.25 -> 33.6875
B26: Sommertid start | D26: =DATE(C2,4,1)-WEEKDAY(DATE(C2,4,1)-1,1) -> 2018-03-26 | F26: 7 | G26: Søndag | H26: 00:00:00 | I26: 0 | J26: 00:00:00 | K26: 0 | M26: Tid i Decimaler : | N26: =N25/24 -> 1.122916667
B27: Sommertid slut | D27: =DATE(C2,11,1)-WEEKDAY(DATE(C2,11,1)-1,1) -> 2018-10-29 | G27: I alt: | H27: =SUM(H20:H26) -> 1.229166667 | I27: 0.9833333333 | J27: =SUM(J20:J26) -> 1.229166667 | K27: 0.9833333333
M28: Tid i decimaler :
G29: Efter d. | H29: 01.05.2015 | M29: Tid i tt:mm :
B30: Udfyld grønne felter, så det passer med din arbejdstid. | G30: Telefontider
G31: Normtid: | H31: Timer | I31: Efter pause | J31: Timer | K31: Efter pause
B32: Helligdage | G32: Ugedag | H32: Lige uger | I32: Sum | J32: Ulige uger | K32: Sum
G33: Mandag | H33: 08:00:00 | I33: =H33*0.8 -> 0.2666666667 | J33: 08:00:00 | K33: =J33*0.8 -> 0.2666666667
B34: Følgende dage er helligdage for alle typer medarbejdere: | G34: Tirsdag | H34: 01:30:00 | I34: =H34*0.8 -> 0.05 | J34: 01:30:00 | K34: =J34*0.8 -> 0.05
G35: Onsdag | H35: 07:00:00 | I35: 0.2333333333 | J35: 07:00:00 | K35: 0.2333333333
B36: Nytårsdag | G36: Torsdag | H36: 07:00:00 | I36: 0.2333333333 | J36: 07:00:00 | K36: 0.2333333333
B37: Skærtorsdag | G37: Fredag | H37: 06:00:00 | I37: 0.2 | J37: 06:00:00 | K37: 0.2
B38: Langfredag | G38: Lørdag | H38: 00:00:00 | I38: 0 | J38: 00:00:00 | K38: 0
B39: 2. påskedag | G39: Søndag | H39: 00:00:00 | I39: 0 | J39: 00:00:00 | K39: 0
B40: St. Bededag | G40: I alt: | H40: =SUM(H33:H39) -> 1.229166667 | I40: 0.9833333333 | J40: =SUM(J33:J39) -> 1.229166667 | K40: 0.9833333333
B41: Kristi Himmelfart
B42: 2. pinsedag
B43: 1. og 2. juledag.
B45: Medarbejdere omfattet af Industriens Overenskomst
B47: Medarbejdere der er omfattet af Industriens Overenskomst har som udgangspunkt fri på ovenstående helligdage.
B49: Herudover er følgende dage fridage efter overenskomsten:
B51: 1. maj
B52: Grundlovsdag
B53: 24. december.
B55: Fridagene regnes fra klokken 06.00 eller fra normal daglig arbejdstids begyndelse til samme tidspunkt næste dag.

Sheet Tidsreg
A1: =TODAY() -> 2017-11-02 | J1: Timeregistrering | K1: 2022 | V1: Række 11 - 376 (375)
B3: Antal dage i året: | C3: =COUNTA(C11:C376) -> 365 | J3: Sygedage: | K3: =COUNTIF($M$11:$M$376,"Sygdom") -> 0 | N3: Arbejdsdage på kontoret: | O3: =SUM(F11:F376) -> 260
A4: Aktuel arbejdsdage i året: | B4: Antal arbejdsdage i året: | C4: =COUNTIF(O11:O376,">0") -> 0 | J4: Feriedage: | K4: =COUNTIF($M$11:$M$376,"Ferie med løn") -> 0 | N4: Arbejdsdage hjemmefra: | O4: =SUM(G11:G376) -> 0
B5: Helligdage på hverdage: | C5: =SUM(Backend!C10:C27) -> 9 | J5: Feriefridage: | K5: =COUNTIF($M$11:$M$376,"Feriefridag") -> 0 | N5: Arbejdsdage i weekender: | O5: =SUM(H11:H376) -> 0
J6: Flexdage: | K6: =COUNTIF($M$11:$M$376,"Flex-fri") -> 0
A7: Weekend, ferie og helligdage i alt: | C7: =SUM(D11:E376) -> 105 | J7: Fraværsdage i alt: | K7: =SUM(K3:K6) -> 0 | N7: Arbejdsdage til skattekort i alt:
A10: Måned | B10: Uge | C10: Dato | D10: Weekend og helligdage | E10: Ferie og Flex | F10: Arbejdspladsen | G10: Hjemmefra | H10: Ekstraarbejde | I10: Diverse | J10: Dag | K10: Komme | L10: Gå | M10: Fravær | N10: Bemærkning | O10: Optjent | P10: Decimaltal | Q10: Normal | R10: Justering | S10: ="+/-" -> +/- | T10: Saldo | U10: Flex | V10: Misc
A11: =IF(DAY(C11)=1,C11,"") -> 2017-12-31 | B11: =1+INT((C11-DATE(YEAR(C11+4-WEEKDAY(C11+6)),1,5)+WEEKDAY(DATE(YEAR(C11+4-WEEKDAY(C11+6)),1,3)))/7) -> 52 | C11: =DATE(K1,1,1) -> 2017-12-31 | D11: =IF(OR(WEEKDAY(C11)=1,WEEKDAY(C11)=7),1,"") -> 1 | E11: =IF(OR(M11="Feriefridag",M11="Ferie med løn",M11="Flex-fri"),1,"") ->  | F11: =IF(AND(Q11<>"",G11=""),1,"") ->  | G11: =IF(AND(K11<>"",$M11="Hjemmearbejdsdag"),1,"") ->  | H11: =IF(AND(D11=1,K11<>""),1,"") ->  | J11: =IF(HelligdagsNavn(C11,0,0)<>"",HelligdagsNavn(C11,0,0),C11) -> Nytårsdag | O11: =IF(OR(K11="",L11=""),0,IF(VALUE(K11)>=VALUE(L11),(TIME(TRUNC(L11/100),MOD(L11,100),0))+1-(TIME(TRUNC(K11/100),MOD(K11,100),0)),(TIME(TRUNC(L11/100),MOD(L11,100),0))-(TIME(TRUNC(K11/100),MOD(K11,100),0)))) -> 0 | P11: =O11*24 -> 0 | Q11: =IF(OR(C11="",D11=1),"",VLOOKUP(WEEKDAY($C11,2),Backend!$F$5:$K$11,4,FALSE)) -> 
A12: =IF(DAY(C12)=1,C12,"") ->  | B12: =IF(WEEKDAY(C12,2)=1,1+INT((C12-DATE(YEAR(C12+4-WEEKDAY(C12+6)),1,5)+WEEKDAY(DATE(YEAR(C12+4-WEEKDAY(C12+6)),1,3)))/7),"") ->  | C12: =C11+1 -> 2018-01-01 | D12: =IF(OR(WEEKDAY(C12)=1,WEEKDAY(C12)=7),1,"") -> 1 | E12: =IF(OR(M12="Feriefridag",M12="Ferie med løn",M12="Flex-fri"),1,"") ->  | H12: =IF(AND(D12=1,K12<>""),1,"") ->  | J12: =C12 -> 2018-01-01 | O12: =IF(OR(K12="",L12=""),0,IF(VALUE(K12)>=VALUE(L12),(TIME(TRUNC(L12/100),MOD(L12,100),0))+1-(TIME(TRUNC(K12/100),MOD(K12,100),0)),(TIME(TRUNC(L12/100),MOD(L12,100),0))-(TIME(TRUNC(K12/100),MOD(K12,100),0)))) -> 0 | P12: =O12*24 -> 0 | Q12: =IF(OR(C12="",D12=1),"",VLOOKUP(WEEKDAY($C12,2),Backend!$F$5:$K$11,4,FALSE)) -> 
B13: 1 | C13: =C12+1 -> 2018-01-02 | F13: 1 | J13: =C13 -> 2018-01-02 | O13: 0 | P13: 0 | Q13: =IF(OR(C13="",D13=1),"",VLOOKUP(WEEKDAY($C13,2),Backend!$F$5:$K$11,4,FALSE)) -> 07:24:00
C14: 2018-01-03 | F14: 1 | J14: 2018-01-03 | O14: 0 | P14: 0 | Q14: =IF(OR(C14="",D14=1),"",VLOOKUP(WEEKDAY($C14,2),Backend!$F$5:$K$11,4,FALSE)) -> 07:24:00
C15: 2018-01-04 | F15: 1 | J15: 2018-01-04 | O15: 0 | P15: 0 | Q15: =IF(OR(C15="",D15=1),"",VLOOKUP(WEEKDAY($C15,2),Backend!$F$5:$K$11,4,FALSE)) -> 07:24:00
C16: 2018-01-05 | F16: 1 | G16: =IF(AND(K16<>"",$M16="Hjemmearbejdsdag"),1,"") ->  | J16: 2018-01-05 | O16: 0 | P16: 0 | Q16: =IF(OR(C16="",D16=1),"",VLOOKUP(WEEKDAY($C16,2),Backend!$F$5:$K$11,4,FALSE)) -> 07:24:00
C17: 2018-01-06 | F17: 1 | J17: 2018-01-06 | O17: 0 | P17: 0 | Q17: =IF(OR(C17="",D17=1),"",VLOOKUP(WEEKDAY($C17,2),Backend!$F$5:$K$11,4,FALSE)) -> 07:24:00
C18: 2018-01-07 | D18: 1 | J18: 2018-01-07 | O18: 0 | P18: 0 | Q18: =IF(OR(C18="",D18=1),"",VLOOKUP(WEEKDAY($C18,2),Backend!$F$5:$K$11,4,FALSE)) -> 
C19: 2018-01-08 | D19: 1 | J19: 2018-01-08 | O19: 0 | P19: 0 | Q19: =IF(OR(C19="",D19=1),"",VLOOKUP(WEEKDAY($C19,2),Backend!$F$5:$K$11,4,FALSE)) -> 
B20: 2 | C20: 2018-01-09 | F20: 1 | J20: 2018-01-09 | O20: 0 | P20: 0 | Q20: =IF(OR(C20="",D20=1),"",VLOOKUP(WEEKDAY($C20,2),Backend!$F$5:$K$11,4,FALSE)) -> 07:24:00
C21: 2018-01-10 | F21: 1 | J21: 2018-01-10 | O21: 0 | P21: 0 | Q21: =IF(OR(C21="",D21=1),"",VLOOKUP(WEEKDAY($C21,2),Backend!$F$5:$K$11,4,FALSE)) -> 07:24:00
C22: 2018-01-11 | F22: 1 | J22: 2018-01-11 | O22: 0 | P22: 0 | Q22: =IF(OR(C22="",D22=1),"",VLOOKUP(WEEKDAY($C22,2),Backend!$F$5:$K$11,4,FALSE)) -> 07:24:00
C23: 2018-01-12 | F23: 1 | J23: 2018-01-12 | O23: 0 | P23: 0 | Q23: =IF(OR(C23="",D23=1),"",VLOOKUP(WEEKDAY($C23,2),Backend!$F$5:$K$11,4,FALSE)) -> 07:24:00
C24: 2018-01-13 | F24: 1 | J24: 2018-01-13 | O24: 0 | P24: 0 | Q24: =IF(OR(C24="",D24=1),"",VLOOKUP(WEEKDAY($C24,2),Backend!$F$5:$K$11,4,FALSE)) -> 07:24:00
C25: 2018-01-14 | D25: 1 | J25: 2018-01-14 | O25: 0 | P25: 0 | Q25: =IF(OR(C25="",D25=1),"",VLOOKUP(WEEKDAY($C25,2),Backend!$F$5:$K$11,4,FALSE)) -> 
C26: 2018-01-15 | D26: 1 | J26: 2018-01-15 | O26: 0 | P26: 0 | Q26: =IF(OR(C26="",D26=1),"",VLOOKUP(WEEKDAY($C26,2),Backend!$F$5:$K$11,4,FALSE)) -> 
B27: 3 | C27: 2018-01-16 | F27: 1 | J27: 2018-01-16 | O27: 0 | P27: 0 | Q27: =IF(OR(C27="",D27=1),"",VLOOKUP(WEEKDAY($C27,2),Backend!$F$5:$K$11,4,FALSE)) -> 07:24:00
C28: 2018-01-17 | F28: 1 | J28: 2018-01-17 | O28: 0 | P28: 0 | Q28: =IF(OR(C28="",D28=1),"",VLOOKUP(WEEKDAY($C28,2),Backend!$F$5:$K$11,4,FALSE)) -> 07:24:00
C29: 2018-01-18 | F29: 1 | J29: 2018-01-18 | O29: 0 | P29: 0 | Q29: =IF(OR(C29="",D29=1),"",VLOOKUP(WEEKDAY($C29,2),Backend!$F$5:$K$11,4,FALSE)) -> 07:24:00
C30: 2018-01-19 | F30: 1 | J30: 2018-01-19 | O30: 0 | P30: 0 | Q30: =IF(OR(C30="",D30=1),"",VLOOKUP(WEEKDAY($C30,2),Backend!$F$5:$K$11,4,FALSE)) -> 07:24:00
C31: 2018-01-20 | F31: 1 | J31: 2018-01-20 | O31: 0 | P31: 0 | Q31: =IF(OR(C31="",D31=1),"",VLOOKUP(WEEKDAY($C31,2),Backend!$F$5:$K$11,4,FALSE)) -> 07:24:00
C32: 2018-01-21 | D32: 1 | J32: 2018-01-21 | O32: 0 | P32: 0 | Q32: =IF(OR(C32="",D32=1),"",VLOOKUP(WEEKDAY($C32,2),Backend!$F$5:$K$11,4,FALSE)) -> 
C33: 2018-01-22 | D33: 1 | J33: 2018-01-22 | O33: 0 | P33: 0 | Q33: =IF(OR(C33="",D33=1),"",VLOOKUP(WEEKDAY($C33,2),Backend!$F$5:$K$11,4,FALSE)) -> 
B34: 4 | C34: 2018-01-23 | F34: 1 | J34: 2018-01-23 | O34: 0 | P34: 0 | Q34: =IF(OR(C34="",D34=1),"",VLOOKUP(WEEKDAY($C34,2),Backend!$F$5:$K$11,4,FALSE)) -> 07:24:00
C35: 2018-01-24 | F35: 1 | J35: 2018-01-24 | O35: 0 | P35: 0 | Q35: =IF(OR(C35="",D35=1),"",VLOOKUP(WEEKDAY($C35,2),Backend!$F$5:$K$11,4,FALSE)) -> 07:24:00
C36: 2018-01-25 | F36: 1 | J36: 2018-01-25 | O36: 0 | P36: 0 | Q36: =IF(OR(C36="",D36=1),"",VLOOKUP(WEEKDAY($C36,2),Backend!$F$5:$K$11,4,FALSE)) -> 07:24:00
C37: 2018-01-26 | F37: 1 | J37: 2018-01-26 | O37: 0 | P37: 0 | Q37: =IF(OR(C37="",D37=1),"",VLOOKUP(WEEKDAY($C37,2),Backend!$F$5:$K$11,4,FALSE)) -> 07:24:00
C38: 2018-01-27 | F38: 1 | J38: 2018-01-27 | O38: 0 | P38: 0 | Q38: =IF(OR(C38="",D38=1),"",VLOOKUP(WEEKDAY($C38,2),Backend!$F$5:$K$11,4,FALSE)) -> 07:24:00
C39: 2018-01-28 | D39: 1 | J39: 2018-01-28 | O39: 0 | P39: 0 | Q39: =IF(OR(C39="",D39=1),"",VLOOKUP(WEEKDAY($C39,2),Backend!$F$5:$K$11,4,FALSE)) -> 
C40: 2018-01-29 | D40: 1 | J40: 2018-01-29 | O40: 0 | P40: 0 | Q40: =IF(OR(C40="",D40=1),"",VLOOKUP(WEEKDAY($C40,2),Backend!$F$5:$K$11,4,FALSE)) -> 
B41: 5 | C41: 2018-01-30 | F41: 1 | J41: 2018-01-30 | O41: 0 | P41: 0 | Q41: =IF(OR(C41="",D41=1),"",VLOOKUP(WEEKDAY($C41,2),Backend!$F$5:$K$11,4,FALSE)) -> 07:24:00
A42: 2018-01-31 | C42: 2018-01-31 | F42: 1 | J42: 2018-01-31 | O42: 0 | P42: 0 | Q42: =IF(OR(C42="",D42=1),"",VLOOKUP(WEEKDAY($C42,2),Backend!$F$5:$K$11,4,FALSE)) -> 07:24:00
C43: 2018-02-01 | F43: 1 | J43: 2018-02-01 | O43: 0 | P43: 0 | Q43: =IF(OR(C43="",D43=1),"",VLOOKUP(WEEKDAY($C43,2),Backend!$F$5:$K$11,4,FALSE)) -> 07:24:00
C44: 2018-02-02 | F44: 1 | J44: 2018-02-02 | O44: 0 | P44: 0 | Q44: =IF(OR(C44="",D44=1),"",VLOOKUP(WEEKDAY($C44,2),Backend!$F$5:$K$11,4,FALSE)) -> 07:24:00
C45: 2018-02-03 | F45: 1 | J45: 2018-02-03 | O45: 0 | P45: 0 | Q45: =IF(OR(C45="",D45=1),"",VLOOKUP(WEEKDAY($C45,2),Backend!$F$5:$K$11,4,FALSE)) -> 07:24:00
C46: 2018-02-04 | D46: 1 | J46: 2018-02-04 | O46: 0 | P46: 0 | Q46: =IF(OR(C46="",D46=1),"",VLOOKUP(WEEKDAY($C46,2),Backend!$F$5:$K$11,4,FALSE)) -> 
C47: 2018-02-05 | D47: 1 | J47: 2018-02-05 | O47: 0 | P47: 0 | Q47: =IF(OR(C47="",D47=1),"",VLOOKUP(WEEKDAY($C47,2),Backend!$F$5:$K$11,4,FALSE)) -> 
B48: 6 | C48: 2018-02-06 | F48: 1 | J48: 2018-02-06 | O48: 0 | P48: 0 | Q48: =IF(OR(C48="",D48=1),"",VLOOKUP(WEEKDAY($C48,2),Backend!$F$5:$K$11,4,FALSE)) -> 07:24:00
C49: 2018-02-07 | F49: 1 | J49: 2018-02-07 | O49: 0 | P49: 0 | Q49: =IF(OR(C49="",D49=1),"",VLOOKUP(WEEKDAY($C49,2),Backend!$F$5:$K$11,4,FALSE)) -> 07:24:00
C50: 2018-02-08 | F50: 1 | J50: 2018-02-08 | O50: 0 | P50: 0 | Q50: =IF(OR(C50="",D50=1),"",VLOOKUP(WEEKDAY($C50,2),Backend!$F$5:$K$11,4,FALSE)) -> 07:24:00
C51: 2018-02-09 | F51: 1 | J51: 2018-02-09 | O51: 0 | P51: 0 | Q51: =IF(OR(C51="",D51=1),"",VLOOKUP(WEEKDAY($C51,2),Backend!$F$5:$K$11,4,FALSE)) -> 07:24:00
C52: 2018-02-10 | F52: 1 | J52: 2018-02-10 | O52: 0 | P52: 0 | Q52: =IF(OR(C52="",D52=1),"",VLOOKUP(WEEKDAY($C52,2),Backend!$F$5:$K$11,4,FALSE)) -> 07:24:00
C53: 2018-02-11 | D53: 1 | J53: 2018-02-11 | O53: 0 | P53: 0 | Q53: =IF(OR(C53="",D53=1),"",VLOOKUP(WEEKDAY($C53,2),Backend!$F$5:$K$11,4,FALSE)) -> 
C54: 2018-02-12 | D54: 1 | J54: 2018-02-12 | O54: 0 | P54: 0 | Q54: =IF(OR(C54="",D54=1),"",VLOOKUP(WEEKDAY($C54,2),Backend!$F$5:$K$11,4,FALSE)) -> 
B55: 7 | C55: 2018-02-13 | F55: 1 | J55: 2018-02-13 | O55: 0 | P55: 0 | Q55: =IF(OR(C55="",D55=1),"",VLOOKUP(WEEKDAY($C55,2),Backend!$F$5:$K$11,4,FALSE)) -> 07:24:00
C56: 2018-02-14 | F56: 1 | J56: 2018-02-14 | O56: 0 | P56: 0 | Q56: =IF(OR(C56="",D56=1),"",VLOOKUP(WEEKDAY($C56,2),Backend!$F$5:$K$11,4,FALSE)) -> 07:24:00
C57: 2018-02-15 | F57: 1 | J57: 2018-02-15 | O57: 0 | P57: 0 | Q57: =IF(OR(C57="",D57=1),"",VLOOKUP(WEEKDAY($C57,2),Backend!$F$5:$K$11,4,FALSE)) -> 07:24:00
C58: 2018-02-16 | F58: 1 | J58: 2018-02-16 | O58: 0 | P58: 0 | Q58: =IF(OR(C58="",D58=1),"",VLOOKUP(WEEKDAY($C58,2),Backend!$F$5:$K$11,4,FALSE)) -> 07:24:00
C59: 2018-02-17 | F59: 1 | J59: 2018-02-17 | O59: 0 | P59: 0 | Q59: =IF(OR(C59="",D59=1),"",VLOOKUP(WEEKDAY($C59,2),Backend!$F$5:$K$11,4,FALSE)) -> 07:24:00
C60: 2018-02-18 | D60: 1 | J60: 2018-02-18 | O60: 0 | P60: 0 | Q60: =IF(OR(C60="",D60=1),"",VLOOKUP(WEEKDAY($C60,2),Backend!$F$5:$K$11,4,FALSE)) -> 
C61: 2018-02-19 | D61: 1 | J61: 2018-02-19 | O61: 0 | P61: 0 | Q61: =IF(OR(C61="",D61=1),"",VLOOKUP(WEEKDAY($C61,2),Backend!$F$5:$K$11,4,FALSE)) -> 
B62: 8 | C62: 2018-02-20 | F62: 1 | J62: 2018-02-20 | O62: 0 | P62: 0 | Q62: =IF(OR(C62="",D62=1),"",VLOOKUP(WEEKDAY($C62,2),Backend!$F$5:$K$11,4,FALSE)) -> 07:24:00
C63: 2018-02-21 | F63: 1 | J63: 2018-02-21 | O63: 0 | P63: 0 | Q63: =IF(OR(C63="",D63=1),"",VLOOKUP(WEEKDAY($C63,2),Backend!$F$5:$K$11,4,FALSE)) -> 07:24:00
C64: 2018-02-22 | F64: 1 | J64: 2018-02-22 | O64: 0 | P64: 0 | Q64: =IF(OR(C64="",D64=1),"",VLOOKUP(WEEKDAY($C64,2),Backend!$F$5:$K$11,4,FALSE)) -> 07:24:00
C65: 2018-02-23 | F65: 1 | J65: 2018-02-23 | O65: 0 | P65: 0 | Q65: =IF(OR(C65="",D65=1),"",VLOOKUP(WEEKDAY($C65,2),Backend!$F$5:$K$11,4,FALSE)) -> 07:24:00
C66: 2018-02-24 | F66: 1 | J66: 2018-02-24 | O66: 0 | P66: 0 | Q66: =IF(OR(C66="",D66=1),"",VLOOKUP(WEEKDAY($C66,2),Backend!$F$5:$K$11,4,FALSE)) -> 07:24:00
C67: 2018-02-25 | D67: 1 | J67: 2018-02-25 | O67: 0 | P67: 0 | Q67: =IF(OR(C67="",D67=1),"",VLOOKUP(WEEKDAY($C67,2),Backend!$F$5:$K$11,4,FALSE)) -> 
C68: 2018-02-26 | D68: 1 | J68: 2018-02-26 | O68: 0 | P68: 0 | Q68: =IF(OR(C68="",D68=1),"",VLOOKUP(WEEKDAY($C68,2),Backend!$F$5:$K$11,4,FALSE)) -> 
B69: 9 | C69: 2018-02-27 | F69: 1 | J69: 2018-02-27 | O69: 0 | P69: 0 | Q69: =IF(OR(C69="",D69=1),"",VLOOKUP(WEEKDAY($C69,2),Backend!$F$5:$K$11,4,FALSE)) -> 07:24:00
A70: 2018-02-28 | C70: 2018-02-28 | F70: 1 | J70: 2018-02-28 | O70: 0 | P70: 0 | Q70: =IF(OR(C70="",D70=1),"",VLOOKUP(WEEKDAY($C70,2),Backend!$F$5:$K$11,4,FALSE)) -> 07:24:00
C71: 2018-03-01 | F71: 1 | J71: 2018-03-01 | O71: 0 | P71: 0 | Q71: =IF(OR(C71="",D71=1),"",VLOOKUP(WEEKDAY($C71,2),Backend!$F$5:$K$11,4,FALSE)) -> 07:24:00
C72: 2018-03-02 | F72: 1 | J72: 2018-03-02 | O72: 0 | P72: 0 | Q72: =IF(OR(C72="",D72=1),"",VLOOKUP(WEEKDAY($C72,2),Backend!$F$5:$K$11,4,FALSE)) -> 07:24:00
C73: 2018-03-03 | F73: 1 | J73: 2018-03-03 | O73: 0 | P73: 0 | Q73: =IF(OR(C73="",D73=1),"",VLOOKUP(WEEKDAY($C73,2),Backend!$F$5:$K$11,4,FALSE)) -> 07:24:00
C74: 2018-03-04 | D74: 1 | J74: 2018-03-04 | O74: 0 | P74: 0 | Q74: =IF(OR(C74="",D74=1),"",VLOOKUP(WEEKDAY($C74,2),Backend!$F$5:$K$11,4,FALSE)) -> 
C75: 2018-03-05 | D75: 1 | F75: =IF(AND(Q75<>"",G75=""),1,"") ->  | G75: =IF(AND(K75<>"",$M75="Hjemmearbejdsdag"),1,"") ->  | J75: 2018-03-05 | O75: 0 | P75: 0 | Q75: =IF(OR(C75="",D75=1),"",VLOOKUP(WEEKDAY($C75,2),Backend!$F$5:$K$11,4,FALSE)) -> 
A76: =IF(DAY(C76)=1,C76,"") ->  | B76: =IF(WEEKDAY(C76,2)=1,1+INT((C76-DATE(YEAR(C76+4-WEEKDAY(C76+6)),1,5)+WEEKDAY(DATE(YEAR(C76+4-WEEKDAY(C76+6)),1,3)))/7),"") -> 10 | C76: 2018-03-06 | D76: =IF(OR(WEEKDAY(C76)=1,WEEKDAY(C76)=7),1,"") ->  | E76: =IF(OR(M76="Feriefridag",M76="Ferie med løn",M76="Flex-fri"),1,"") ->  | F76: 1 | H76: =IF(AND(D76=1,K76<>""),1,"") ->  | J76: 2018-03-06 | O76: =IF(OR(K76="",L76=""),0,IF(VALUE(K76)>=VALUE(L76),(TIME(TRUNC(L76/100),MOD(L76,100),0))+1-(TIME(TRUNC(K76/100),MOD(K76,100),0)),(TIME(TRUNC(L76/100),MOD(L76,100),0))-(TIME(TRUNC(K76/100),MOD(K76,100),0)))) -> 0 | P76: =O76*24 -> 0 | Q76: =IF(OR(C76="",D76=1),"",VLOOKUP(WEEKDAY($C76,2),Backend!$F$5:$K$11,4,FALSE)) -> 07:24:00
C77: =C76+1 -> 2018-03-07 | F77: 1 | J77: =C77 -> 2018-03-07 | O77: 0 | P77: 0 | Q77: =IF(OR(C77="",D77=1),"",VLOOKUP(WEEKDAY($C77,2),Backend!$F$5:$K$11,4,FALSE)) -> 07:24:00
C78: 2018-03-08 | F78: 1 | J78: 2018-03-08 | O78: 0 | P78: 0 | Q78: =IF(OR(C78="",D78=1),"",VLOOKUP(WEEKDAY($C78,2),Backend!$F$5:$K$11,4,FALSE)) -> 07:24:00
C79: 2018-03-09 | F79: 1 | J79: 2018-03-09 | O79: 0 | P79: 0 | Q79: =IF(OR(C79="",D79=1),"",VLOOKUP(WEEKDAY($C79,2),Backend!$F$5:$K$11,4,FALSE)) -> 07:24:00
C80: 2018-03-10 | F80: 1 | J80: 2018-03-10 | O80: 0 | P80: 0 | Q80: =IF(OR(C80="",D80=1),"",VLOOKUP(WEEKDAY($C80,2),Backend!$F$5:$K$11,4,FALSE)) -> 07:24:00
C81: 2018-03-11 | D81: 1 | J81: 2018-03-11 | O81: 0 | P81: 0 | Q81: =IF(OR(C81="",D81=1),"",VLOOKUP(WEEKDAY($C81,2),Backend!$F$5:$K$11,4,FALSE)) -> 
C82: 2018-03-12 | D82: 1 | J82: 2018-03-12 | O82: 0 | P82: 0 | Q82: =IF(OR(C82="",D82=1),"",VLOOKUP(WEEKDAY($C82,2),Backend!$F$5:$K$11,4,FALSE)) -> 
B83: 11 | C83: 2018-03-13 | F83: 1 | J83: 2018-03-13 | O83: 0 | P83: 0 | Q83: =IF(OR(C83="",D83=1),"",VLOOKUP(WEEKDAY($C83,2),Backend!$F$5:$K$11,4,FALSE)) -> 07:24:00
C84: 2018-03-14 | F84: 1 | J84: 2018-03-14 | O84: 0 | P84: 0 | Q84: =IF(OR(C84="",D84=1),"",VLOOKUP(WEEKDAY($C84,2),Backend!$F$5:$K$11,4,FALSE)) -> 07:24:00
C85: 2018-03-15 | F85: 1 | J85: 2018-03-15 | O85: 0 | P85: 0 | Q85: =IF(OR(C85="",D85=1),"",VLOOKUP(WEEKDAY($C85,2),Backend!$F$5:$K$11,4,FALSE)) -> 07:24:00
C86: 2018-03-16 | F86: 1 | J86: 2018-03-16 | O86: 0 | P86: 0 | Q86: =IF(OR(C86="",D86=1),"",VLOOKUP(WEEKDAY($C86,2),Backend!$F$5:$K$11,4,FALSE)) -> 07:24:00
C87: 2018-03-17 | F87: 1 | J87: 2018-03-17 | O87: 0 | P87: 0 | Q87: =IF(OR(C87="",D87=1),"",VLOOKUP(WEEKDAY($C87,2),Backend!$F$5:$K$11,4,FALSE)) -> 07:24:00
C88: 2018-03-18 | D88: 1 | J88: 2018-03-18 | O88: 0 | P88: 0 | Q88: =IF(OR(C88="",D88=1),"",VLOOKUP(WEEKDAY($C88,2),Backend!$F$5:$K$11,4,FALSE)) -> 
C89: 2018-03-19 | D89: 1 | J89: 2018-03-19 | O89: 0 | P89: 0 | Q89: =IF(OR(C89="",D89=1),"",VLOOKUP(WEEKDAY($C89,2),Backend!$F$5:$K$11,4,FALSE)) -> 
B90: 12 | C90: 2018-03-20 | F90: 1 | J90: 2018-03-20 | O90: 0 | P90: 0 | Q90: =IF(OR(C90="",D90=1),"",VLOOKUP(WEEKDAY($C90,2),Backend!$F$5:$K$11,4,FALSE)) -> 07:24:00
C91: 2018-03-21 | F91: 1 | J91: 2018-03-21 | O91: 0 | P91: 0 | Q91: =IF(OR(C91="",D91=1),"",VLOOKUP(WEEKDAY($C91,2),Backend!$F$5:$K$11,4,FALSE)) -> 07:24:00
C92: 2018-03-22 | F92: 1 | J92: 2018-03-22 | O92: 0 | P92: 0 | Q92: =IF(OR(C92="",D92=1),"",VLOOKUP(WEEKDAY($C92,2),Backend!$F$5:$K$11,4,FALSE)) -> 07:24:00
C93: 2018-03-23 | F93: 1 | J93: 2018-03-23 | O93: 0 | P93: 0 | Q93: =IF(OR(C93="",D93=1),"",VLOOKUP(WEEKDAY($C93,2),Backend!$F$5:$K$11,4,FALSE)) -> 07:24:00
C94: 2018-03-24 | F94: 1 | J94: 2018-03-24 | O94: 0 | P94: 0 | Q94: =IF(OR(C94="",D94=1),"",VLOOKUP(WEEKDAY($C94,2),Backend!$F$5:$K$11,4,FALSE)) -> 07:24:00
C95: 2018-03-25 | D95: 1 | J95: 2018-03-25 | O95: 0 | P95: 0 | Q95: =IF(OR(C95="",D95=1),"",VLOOKUP(WEEKDAY($C95,2),Backend!$F$5:$K$11,4,FALSE)) -> 
C96: 2018-03-26 | D96: 1 | J96: 2018-03-26 | O96: 0 | P96: 0 | Q96: =IF(OR(C96="",D96=1),"",VLOOKUP(WEEKDAY($C96,2),Backend!$F$5:$K$11,4,FALSE)) -> 
B97: 13 | C97: 2018-03-27 | F97: 1 | J97: 2018-03-27 | O97: 0 | P97: 0 | Q97: =IF(OR(C97="",D97=1),"",VLOOKUP(WEEKDAY($C97,2),Backend!$F$5:$K$11,4,FALSE)) -> 07:24:00
C98: 2018-03-28 | F98: 1 | J98: 2018-03-28 | O98: 0 | P98: 0 | Q98: =IF(OR(C98="",D98=1),"",VLOOKUP(WEEKDAY($C98,2),Backend!$F$5:$K$11,4,FALSE)) -> 07:24:00
C99: 2018-03-29 | F99: 1 | J99: 2018-03-29 | O99: 0 | P99: 0 | Q99: =IF(OR(C99="",D99=1),"",VLOOKUP(WEEKDAY($C99,2),Backend!$F$5:$K$11,4,FALSE)) -> 07:24:00
C100: 2018-03-30 | F100: 1 | J100: 2018-03-30 | O100: 0 | P100: 0 | Q100: =IF(OR(C100="",D100=1),"",VLOOKUP(WEEKDAY($C100,2),Backend!$F$5:$K$11,4,FALSE)) -> 07:24:00
A101: 2018-03-31 | C101: 2018-03-31 | F101: 1 | J101: 2018-03-31 | O101: 0 | P101: 0 | Q101: =IF(OR(C101="",D101=1),"",VLOOKUP(WEEKDAY($C101,2),Backend!$F$5:$K$11,4,FALSE)) -> 07:24:00
C102: 2018-04-01 | D102: 1 | J102: 2018-04-01 | O102: 0 | P102: 0 | Q102: =IF(OR(C102="",D102=1),"",VLOOKUP(WEEKDAY($C102,2),Backend!$F$5:$K$11,4,FALSE)) -> 
C103: 2018-04-02 | D103: 1 | J103: 2018-04-02 | O103: 0 | P103: 0 | Q103: =IF(OR(C103="",D103=1),"",VLOOKUP(WEEKDAY($C103,2),Backend!$F$5:$K$11,4,FALSE)) -> 
B104: 14 | C104: 2018-04-03 | F104: 1 | J104: 2018-04-03 | O104: 0 | P104: 0 | Q104: =IF(OR(C104="",D104=1),"",VLOOKUP(WEEKDAY($C104,2),Backend!$F$5:$K$11,4,FALSE)) -> 07:24:00
C105: 2018-04-04 | F105: 1 | J105: 2018-04-04 | O105: 0 | P105: 0 | Q105: =IF(OR(C105="",D105=1),"",VLOOKUP(WEEKDAY($C105,2),Backend!$F$5:$K$11,4,FALSE)) -> 07:24:00
C106: 2018-04-05 | F106: 1 | J106: 2018-04-05 | O106: 0 | P106: 0 | Q106: =IF(OR(C106="",D106=1),"",VLOOKUP(WEEKDAY($C106,2),Backend!$F$5:$K$11,4,FALSE)) -> 07:24:00
C107: 2018-04-06 | F107: 1 | J107: 2018-04-06 | O107: 0 | P107: 0 | Q107: =IF(OR(C107="",D107=1),"",VLOOKUP(WEEKDAY($C107,2),Backend!$F$5:$K$11,4,FALSE)) -> 07:24:00
C108: 2018-04-07 | F108: 1 | J108: 2018-04-07 | O108: 0 | P108: 0 | Q108: =IF(OR(C108="",D108=1),"",VLOOKUP(WEEKDAY($C108,2),Backend!$F$5:$K$11,4,FALSE)) -> 07:24:00
C109: 2018-04-08 | D109: 1 | J109: 2018-04-08 | O109: 0 | P109: 0 | Q109: =IF(OR(C109="",D109=1),"",VLOOKUP(WEEKDAY($C109,2),Backend!$F$5:$K$11,4,FALSE)) -> 
C110: 2018-04-09 | D110: 1 | J110: 2018-04-09 | O110: 0 | P110: 0 | Q110: =IF(OR(C110="",D110=1),"",VLOOKUP(WEEKDAY($C110,2),Backend!$F$5:$K$11,4,FALSE)) -> 
B111: 15 | C111: 2018-04-10 | F111: 1 | J111: 2018-04-10 | O111: 0 | P111: 0 | Q111: =IF(OR(C111="",D111=1),"",VLOOKUP(WEEKDAY($C111,2),Backend!$F$5:$K$11,4,FALSE)) -> 07:24:00
C112: 2018-04-11 | F112: 1 | J112: 2018-04-11 | O112: 0 | P112: 0 | Q112: =IF(OR(C112="",D112=1),"",VLOOKUP(WEEKDAY($C112,2),Backend!$F$5:$K$11,4,FALSE)) -> 07:24:00
C113: 2018-04-12 | F113: 1 | J113: 2018-04-12 | O113: 0 | P113: 0 | Q113: =IF(OR(C113="",D113=1),"",VLOOKUP(WEEKDAY($C113,2),Backend!$F$5:$K$11,4,FALSE)) -> 07:24:00
C114: 2018-04-13 | F114: 1 | J114: 2018-04-13 | O114: 0 | P114: 0 | Q114: =IF(OR(C114="",D114=1),"",VLOOKUP(WEEKDAY($C114,2),Backend!$F$5:$K$11,4,FALSE)) -> 07:24:00
C115: 2018-04-14 | F115: 1 | J115: 2018-04-14 | O115: 0 | P115: 0 | Q115: =IF(OR(C115="",D115=1),"",VLOOKUP(WEEKDAY($C115,2),Backend!$F$5:$K$11,4,FALSE)) -> 07:24:00
C116: 2018-04-15 | D116: 1 | J116: 2018-04-15 | O116: 0 | P116: 0 | Q116: =IF(OR(C116="",D116=1),"",VLOOKUP(WEEKDAY($C116,2),Backend!$F$5:$K$11,4,FALSE)) -> 
C117: 2018-04-16 | D117: 1 | J117: 2018-04-16 | O117: 0 | P117: 0 | Q117: =IF(OR(C117="",D117=1),"",VLOOKUP(WEEKDAY($C117,2),Backend!$F$5:$K$11,4,FALSE)) -> 
B118: 16 | C118: 2018-04-17 | F118: 1 | J118: 2018-04-17 | O118: 0 | P118: 0 | Q118: =IF(OR(C118="",D118=1),"",VLOOKUP(WEEKDAY($C118,2),Backend!$F$5:$K$11,4,FALSE)) -> 07:24:00
C119: 2018-04-18 | F119: 1 | J119: 2018-04-18 | O119: 0 | P119: 0 | Q119: =IF(OR(C119="",D119=1),"",VLOOKUP(WEEKDAY($C119,2),Backend!$F$5:$K$11,4,FALSE)) -> 07:24:00
C120: 2018-04-19 | F120: 1 | J120: 2018-04-19 | O120: 0 | P120: 0 | Q120: =IF(OR(C120="",D120=1),"",VLOOKUP(WEEKDAY($C120,2),Backend!$F$5:$K$11,4,FALSE)) -> 07:24:00
C121: 2018-04-20 | F121: 1 | J121: 2018-04-20 | O121: 0 | P121: 0 | Q121: =IF(OR(C121="",D121=1),"",VLOOKUP(WEEKDAY($C121,2),Backend!$F$5:$K$11,4,FALSE)) -> 07:24:00
C122: 2018-04-21 | F122: 1 | J122: 2018-04-21 | O122: 0 | P122: 0 | Q122: =IF(OR(C122="",D122=1),"",VLOOKUP(WEEKDAY($C122,2),Backend!$F$5:$K$11,4,FALSE)) -> 07:24:00
C123: 2018-04-22 | D123: 1 | J123: 2018-04-22 | O123: 0 | P123: 0 | Q123: =IF(OR(C123="",D123=1),"",VLOOKUP(WEEKDAY($C123,2),Backend!$F$5:$K$11,4,FALSE)) -> 
C124: 2018-04-23 | D124: 1 | J124: 2018-04-23 | O124: 0 | P124: 0 | Q124: =IF(OR(C124="",D124=1),"",VLOOKUP(WEEKDAY($C124,2),Backend!$F$5:$K$11,4,FALSE)) -> 
B125: 17 | C125: 2018-04-24 | F125: 1 | J125: 2018-04-24 | O125: 0 | P125: 0 | Q125: =IF(OR(C125="",D125=1),"",VLOOKUP(WEEKDAY($C125,2),Backend!$F$5:$K$11,4,FALSE)) -> 07:24:00
C126: 2018-04-25 | F126: 1 | J126: 2018-04-25 | O126: 0 | P126: 0 | Q126: =IF(OR(C126="",D126=1),"",VLOOKUP(WEEKDAY($C126,2),Backend!$F$5:$K$11,4,FALSE)) -> 07:24:00
C127: 2018-04-26 | F127: 1 | J127: 2018-04-26 | O127: 0 | P127: 0 | Q127: =IF(OR(C127="",D127=1),"",VLOOKUP(WEEKDAY($C127,2),Backend!$F$5:$K$11,4,FALSE)) -> 07:24:00
C128: 2018-04-27 | F128: 1 | J128: 2018-04-27 | O128: 0 | P128: 0 | Q128: =IF(OR(C128="",D128=1),"",VLOOKUP(WEEKDAY($C128,2),Backend!$F$5:$K$11,4,FALSE)) -> 07:24:00
C129: 2018-04-28 | F129: 1 | J129: 2018-04-28 | O129: 0 | P129: 0 | Q129: =IF(OR(C129="",D129=1),"",VLOOKUP(WEEKDAY($C129,2),Backend!$F$5:$K$11,4,FALSE)) -> 07:24:00
C130: 2018-04-29 | D130: 1 | J130: 2018-04-29 | O130: 0 | P130: 0 | Q130: =IF(OR(C130="",D130=1),"",VLOOKUP(WEEKDAY($C130,2),Backend!$F$5:$K$11,4,FALSE)) -> 
A131: 2018-04-30 | C131: 2018-04-30 | D131: 1 | J131: 2018-04-30 | O131: 0 | P131: 0 | Q131: =IF(OR(C131="",D131=1),"",VLOOKUP(WEEKDAY($C131,2),Backend!$F$5:$K$11,4,FALSE)) -> 
B132: 18 | C132: 2018-05-01 | F132: 1 | J132: 2018-05-01 | O132: 0 | P132: 0 | Q132: =IF(OR(C132="",D132=1),"",VLOOKUP(WEEKDAY($C132,2),Backend!$F$5:$K$11,4,FALSE)) -> 07:24:00
C133: 2018-05-02 | F133: 1 | J133: 2018-05-02 | O133: 0 | P133: 0 | Q133: =IF(OR(C133="",D133=1),"",VLOOKUP(WEEKDAY($C133,2),Backend!$F$5:$K$11,4,FALSE)) -> 07:24:00
C134: 2018-05-03 | F134: 1 | J134: 2018-05-03 | O134: 0 | P134: 0 | Q134: =IF(OR(C134="",D134=1),"",VLOOKUP(WEEKDAY($C134,2),Backend!$F$5:$K$11,4,FALSE)) -> 07:24:00
C135: 2018-05-04 | F135: 1 | J135: 2018-05-04 | O135: 0 | P135: 0 | Q135: =IF(OR(C135="",D135=1),"",VLOOKUP(WEEKDAY($C135,2),Backend!$F$5:$K$11,4,FALSE)) -> 07:24:00
C136: 2018-05-05 | F136: 1 | J136: 2018-05-05 | O136: 0 | P136: 0 | Q136: =IF(OR(C136="",D136=1),"",VLOOKUP(WEEKDAY($C136,2),Backend!$F$5:$K$11,4,FALSE)) -> 07:24:00
C137: 2018-05-06 | D137: 1 | J137: 2018-05-06 | O137: 0 | P137: 0 | Q137: =IF(OR(C137="",D137=1),"",VLOOKUP(WEEKDAY($C137,2),Backend!$F$5:$K$11,4,FALSE)) -> 
C138: 2018-05-07 | D138: 1 | J138: 2018-05-07 | O138: 0 | P138: 0 | Q138: =IF(OR(C138="",D138=1),"",VLOOKUP(WEEKDAY($C138,2),Backend!$F$5:$K$11,4,FALSE)) -> 
B139: 19 | C139: 2018-05-08 | F139: =IF(AND(Q139<>"",G139=""),1,"") -> 1 | G139: =IF(AND(K139<>"",$M139="Hjemmearbejdsdag"),1,"") ->  | J139: 2018-05-08 | O139: 0 | P139: 0 | Q139: =IF(OR(C139="",D139=1),"",VLOOKUP(WEEKDAY($C139,2),Backend!$F$5:$K$11,4,FALSE)) -> 07:24:00
A140: =IF(DAY(C140)=1,C140,"") ->  | B140: =IF(WEEKDAY(C140,2)=1,1+INT((C140-DATE(YEAR(C140+4-WEEKDAY(C140+6)),1,5)+WEEKDAY(DATE(YEAR(C140+4-WEEKDAY(C140+6)),1,3)))/7),"") ->  | C140: 2018-05-09 | D140: =IF(OR(WEEKDAY(C140)=1,WEEKDAY(C140)=7),1,"") ->  | E140: =IF(OR(M140="Feriefridag",M140="Ferie med løn",M140="Flex-fri"),1,"") ->  | F140: 1 | H140: =IF(AND(D140=1,K140<>""),1,"") ->  | J140: 2018-05-09 | O140: =IF(OR(K140="",L140=""),0,IF(VALUE(K140)>=VALUE(L140),(TIME(TRUNC(L140/100),MOD(L140,100),0))+1-(TIME(TRUNC(K140/100),MOD(K140,100),0)),(TIME(TRUNC(L140/100),MOD(L140,100),0))-(TIME(TRUNC(K140/100),MOD(K140,100),0)))) -> 0 | P140: =O140*24 -> 0 | Q140: =IF(OR(C140="",D140=1),"",VLOOKUP(WEEKDAY($C140,2),Backend!$F$5:$K$11,4,FALSE)) -> 07:24:00
C141: =C140+1 -> 2018-05-10 | F141: 1 | J141: =C141 -> 2018-05-10 | O141: 0 | P141: 0 | Q141: =IF(OR(C141="",D141=1),"",VLOOKUP(WEEKDAY($C141,2),Backend!$F$5:$K$11,4,FALSE)) -> 07:24:00
C142: 2018-05-11 | F142: 1 | J142: 2018-05-11 | O142: 0 | P142: 0 | Q142: =IF(OR(C142="",D142=1),"",VLOOKUP(WEEKDAY($C142,2),Backend!$F$5:$K$11,4,FALSE)) -> 07:24:00
C143: 2018-05-12 | F143: 1 | J143: 2018-05-12 | O143: 0 | P143: 0 | Q143: =IF(OR(C143="",D143=1),"",VLOOKUP(WEEKDAY($C143,2),Backend!$F$5:$K$11,4,FALSE)) -> 07:24:00
C144: 2018-05-13 | D144: 1 | J144: 2018-05-13 | O144: 0 | P144: 0 | Q144: =IF(OR(C144="",D144=1),"",VLOOKUP(WEEKDAY($C144,2),Backend!$F$5:$K$11,4,FALSE)) -> 
C145: 2018-05-14 | D145: 1 | J145: 2018-05-14 | O145: 0 | P145: 0 | Q145: =IF(OR(C145="",D145=1),"",VLOOKUP(WEEKDAY($C145,2),Backend!$F$5:$K$11,4,FALSE)) -> 
B146: 20 | C146: 2018-05-15 | F146: 1 | J146: 2018-05-15 | O146: 0 | P146: 0 | Q146: =IF(OR(C146="",D146=1),"",VLOOKUP(WEEKDAY($C146,2),Backend!$F$5:$K$11,4,FALSE)) -> 07:24:00
C147: 2018-05-16 | F147: 1 | J147: 2018-05-16 | O147: 0 | P147: 0 | Q147: =IF(OR(C147="",D147=1),"",VLOOKUP(WEEKDAY($C147,2),Backend!$F$5:$K$11,4,FALSE)) -> 07:24:00
C148: 2018-05-17 | F148: 1 | J148: 2018-05-17 | O148: 0 | P148: 0 | Q148: =IF(OR(C148="",D148=1),"",VLOOKUP(WEEKDAY($C148,2),Backend!$F$5:$K$11,4,FALSE)) -> 07:24:00
C149: 2018-05-18 | F149: 1 | J149: 2018-05-18 | O149: 0 | P149: 0 | Q149: =IF(OR(C149="",D149=1),"",VLOOKUP(WEEKDAY($C149,2),Backend!$F$5:$K$11,4,FALSE)) -> 07:24:00
C150: 2018-05-19 | F150: 1 | J150: 2018-05-19 | O150: 0 | P150: 0 | Q150: =IF(OR(C150="",D150=1),"",VLOOKUP(WEEKDAY($C150,2),Backend!$F$5:$K$11,4,FALSE)) -> 07:24:00
C151: 2018-05-20 | D151: 1 | J151: 2018-05-20 | O151: 0 | P151: 0 | Q151: =IF(OR(C151="",D151=1),"",VLOOKUP(WEEKDAY($C151,2),Backend!$F$5:$K$11,4,FALSE)) -> 
C152: 2018-05-21 | D152: 1 | J152: 2018-05-21 | O152: 0 | P152: 0 | Q152: =IF(OR(C152="",D152=1),"",VLOOKUP(WEEKDAY($C152,2),Backend!$F$5:$K$11,4,FALSE)) -> 
B153: 21 | C153: 2018-05-22 | F153: 1 | J153: 2018-05-22 | O153: 0 | P153: 0 | Q153: =IF(OR(C153="",D153=1),"",VLOOKUP(WEEKDAY($C153,2),Backend!$F$5:$K$11,4,FALSE)) -> 07:24:00
C154: 2018-05-23 | F154: 1 | J154: 2018-05-23 | O154: 0 | P154: 0 | Q154: =IF(OR(C154="",D154=1),"",VLOOKUP(WEEKDAY($C154,2),Backend!$F$5:$K$11,4,FALSE)) -> 07:24:00
C155: 2018-05-24 | F155: 1 | J155: 2018-05-24 | O155: 0 | P155: 0 | Q155: =IF(OR(C155="",D155=1),"",VLOOKUP(WEEKDAY($C155,2),Backend!$F$5:$K$11,4,FALSE)) -> 07:24:00
C156: 2018-05-25 | F156: 1 | J156: 2018-05-25 | O156: 0 | P156: 0 | Q156: =IF(OR(C156="",D156=1),"",VLOOKUP(WEEKDAY($C156,2),Backend!$F$5:$K$11,4,FALSE)) -> 07:24:00
C157: 2018-05-26 | F157: 1 | J157: 2018-05-26 | O157: 0 | P157: 0 | Q157: =IF(OR(C157="",D157=1),"",VLOOKUP(WEEKDAY($C157,2),Backend!$F$5:$K$11,4,FALSE)) -> 07:24:00
C158: 2018-05-27 | D158: 1 | J158: 2018-05-27 | O158: 0 | P158: 0 | Q158: =IF(OR(C158="",D158=1),"",VLOOKUP(WEEKDAY($C158,2),Backend!$F$5:$K$11,4,FALSE)) -> 
C159: 2018-05-28 | D159: 1 | J159: 2018-05-28 | O159: 0 | P159: 0 | Q159: =IF(OR(C159="",D159=1),"",VLOOKUP(WEEKDAY($C159,2),Backend!$F$5:$K$11,4,FALSE)) -> 
B160: 22 | C160: 2018-05-29 | F160: 1 | J160: 2018-05-29 | O160: 0 | P160: 0 | Q160: =IF(OR(C160="",D160=1),"",VLOOKUP(WEEKDAY($C160,2),Backend!$F$5:$K$11,4,FALSE)) -> 07:24:00
C161: 2018-05-30 | F161: 1 | J161: 2018-05-30 | O161: 0 | P161: 0 | Q161: =IF(OR(C161="",D161=1),"",VLOOKUP(WEEKDAY($C161,2),Backend!$F$5:$K$11,4,FALSE)) -> 07:24:00
A162: 2018-05-31 | C162: 2018-05-31 | F162: 1 | J162: 2018-05-31 | O162: 0 | P162: 0 | Q162: =IF(OR(C162="",D162=1),"",VLOOKUP(WEEKDAY($C162,2),Backend!$F$5:$K$11,4,FALSE)) -> 07:24:00
C163: 2018-06-01 | F163: 1 | J163: 2018-06-01 | O163: 0 | P163: 0 | Q163: =IF(OR(C163="",D163=1),"",VLOOKUP(WEEKDAY($C163,2),Backend!$F$5:$K$11,4,FALSE)) -> 07:24:00
C164: 2018-06-02 | F164: 1 | J164: 2018-06-02 | O164: 0 | P164: 0 | Q164: =IF(OR(C164="",D164=1),"",VLOOKUP(WEEKDAY($C164,2),Backend!$F$5:$K$11,4,FALSE)) -> 07:24:00
C165: 2018-06-03 | D165: 1 | J165: 2018-06-03 | O165: 0 | P165: 0 | Q165: =IF(OR(C165="",D165=1),"",VLOOKUP(WEEKDAY($C165,2),Backend!$F$5:$K$11,4,FALSE)) -> 
C166: 2018-06-04 | D166: 1 | J166: 2018-06-04 | O166: 0 | P166: 0 | Q166: =IF(OR(C166="",D166=1),"",VLOOKUP(WEEKDAY($C166,2),Backend!$F$5:$K$11,4,FALSE)) -> 
B167: 23 | C167: 2018-06-05 | F167: 1 | J167: 2018-06-05 | O167: 0 | P167: 0 | Q167: =IF(OR(C167="",D167=1),"",VLOOKUP(WEEKDAY($C167,2),Backend!$F$5:$K$11,4,FALSE)) -> 07:24:00
C168: 2018-06-06 | F168: 1 | J168: 2018-06-06 | O168: 0 | P168: 0 | Q168: =IF(OR(C168="",D168=1),"",VLOOKUP(WEEKDAY($C168,2),Backend!$F$5:$K$11,4,FALSE)) -> 07:24:00
C169: 2018-06-07 | F169: 1 | J169: 2018-06-07 | O169: 0 | P169: 0 | Q169: =IF(OR(C169="",D169=1),"",VLOOKUP(WEEKDAY($C169,2),Backend!$F$5:$K$11,4,FALSE)) -> 07:24:00
C170: 2018-06-08 | F170: 1 | J170: 2018-06-08 | O170: 0 | P170: 0 | Q170: =IF(OR(C170="",D170=1),"",VLOOKUP(WEEKDAY($C170,2),Backend!$F$5:$K$11,4,FALSE)) -> 07:24:00
C171: 2018-06-09 | F171: 1 | J171: 2018-06-09 | O171: 0 | P171: 0 | Q171: =IF(OR(C171="",D171=1),"",VLOOKUP(WEEKDAY($C171,2),Backend!$F$5:$K$11,4,FALSE)) -> 07:24:00
C172: 2018-06-10 | D172: 1 | J172: 2018-06-10 | O172: 0 | P172: 0 | Q172: =IF(OR(C172="",D172=1),"",VLOOKUP(WEEKDAY($C172,2),Backend!$F$5:$K$11,4,FALSE)) -> 
C173: 2018-06-11 | D173: 1 | J173: 2018-06-11 | O173: 0 | P173: 0 | Q173: =IF(OR(C173="",D173=1),"",VLOOKUP(WEEKDAY($C173,2),Backend!$F$5:$K$11,4,FALSE)) -> 
B174: 24 | C174: 2018-06-12 | F174: 1 | J174: 2018-06-12 | O174: 0 | P174: 0 | Q174: =IF(OR(C174="",D174=1),"",VLOOKUP(WEEKDAY($C174,2),Backend!$F$5:$K$11,4,FALSE)) -> 07:24:00
C175: 2018-06-13 | F175: 1 | J175: 2018-06-13 | O175: 0 | P175: 0 | Q175: =IF(OR(C175="",D175=1),"",VLOOKUP(WEEKDAY($C175,2),Backend!$F$5:$K$11,4,FALSE)) -> 07:24:00
C176: 2018-06-14 | F176: 1 | J176: 2018-06-14 | O176: 0 | P176: 0 | Q176: =IF(OR(C176="",D176=1),"",VLOOKUP(WEEKDAY($C176,2),Backend!$F$5:$K$11,4,FALSE)) -> 07:24:00
C177: 2018-06-15 | F177: 1 | J177: 2018-06-15 | O177: 0 | P177: 0 | Q177: =IF(OR(C177="",D177=1),"",VLOOKUP(WEEKDAY($C177,2),Backend!$F$5:$K$11,4,FALSE)) -> 07:24:00
C178: 2018-06-16 | F178: 1 | J178: 2018-06-16 | O178: 0 | P178: 0 | Q178: =IF(OR(C178="",D178=1),"",VLOOKUP(WEEKDAY($C178,2),Backend!$F$5:$K$11,4,FALSE)) -> 07:24:00
C179: 2018-06-17 | D179: 1 | J179: 2018-06-17 | O179: 0 | P179: 0 | Q179: =IF(OR(C179="",D179=1),"",VLOOKUP(WEEKDAY($C179,2),Backend!$F$5:$K$11,4,FALSE)) -> 
C180: 2018-06-18 | D180: 1 | J180: 2018-06-18 | O180: 0 | P180: 0 | Q180: =IF(OR(C180="",D180=1),"",VLOOKUP(WEEKDAY($C180,2),Backend!$F$5:$K$11,4,FALSE)) -> 
B181: 25 | C181: 2018-06-19 | F181: 1 | J181: 2018-06-19 | O181: 0 | P181: 0 | Q181: =IF(OR(C181="",D181=1),"",VLOOKUP(WEEKDAY($C181,2),Backend!$F$5:$K$11,4,FALSE)) -> 07:24:00
C182: 2018-06-20 | F182: 1 | J182: 2018-06-20 | O182: 0 | P182: 0 | Q182: =IF(OR(C182="",D182=1),"",VLOOKUP(WEEKDAY($C182,2),Backend!$F$5:$K$11,4,FALSE)) -> 07:24:00
C183: 2018-06-21 | F183: 1 | J183: 2018-06-21 | O183: 0 | P183: 0 | Q183: =IF(OR(C183="",D183=1),"",VLOOKUP(WEEKDAY($C183,2),Backend!$F$5:$K$11,4,FALSE)) -> 07:24:00
C184: 2018-06-22 | F184: 1 | J184: 2018-06-22 | O184: 0 | P184: 0 | Q184: =IF(OR(C184="",D184=1),"",VLOOKUP(WEEKDAY($C184,2),Backend!$F$5:$K$11,4,FALSE)) -> 07:24:00
C185: 2018-06-23 | F185: 1 | J185: 2018-06-23 | O185: 0 | P185: 0 | Q185: =IF(OR(C185="",D185=1),"",VLOOKUP(WEEKDAY($C185,2),Backend!$F$5:$K$11,4,FALSE)) -> 07:24:00
C186: 2018-06-24 | D186: 1 | J186: 2018-06-24 | O186: 0 | P186: 0 | Q186: =IF(OR(C186="",D186=1),"",VLOOKUP(WEEKDAY($C186,2),Backend!$F$5:$K$11,4,FALSE)) -> 
C187: 2018-06-25 | D187: 1 | J187: 2018-06-25 | O187: 0 | P187: 0 | Q187: =IF(OR(C187="",D187=1),"",VLOOKUP(WEEKDAY($C187,2),Backend!$F$5:$K$11,4,FALSE)) -> 
B188: 26 | C188: 2018-06-26 | F188: 1 | J188: 2018-06-26 | O188: 0 | P188: 0 | Q188: =IF(OR(C188="",D188=1),"",VLOOKUP(WEEKDAY($C188,2),Backend!$F$5:$K$11,4,FALSE)) -> 07:24:00
C189: 2018-06-27 | F189: 1 | J189: 2018-06-27 | O189: 0 | P189: 0 | Q189: =IF(OR(C189="",D189=1),"",VLOOKUP(WEEKDAY($C189,2),Backend!$F$5:$K$11,4,FALSE)) -> 07:24:00
C190: 2018-06-28 | F190: 1 | J190: 2018-06-28 | O190: 0 | P190: 0 | Q190: =IF(OR(C190="",D190=1),"",VLOOKUP(WEEKDAY($C190,2),Backend!$F$5:$K$11,4,FALSE)) -> 07:24:00
C191: 2018-06-29 | F191: 1 | J191: 2018-06-29 | O191: 0 | P191: 0 | Q191: =IF(OR(C191="",D191=1),"",VLOOKUP(WEEKDAY($C191,2),Backend!$F$5:$K$11,4,FALSE)) -> 07:24:00
A192: 2018-06-30 | C192: 2018-06-30 | F192: 1 | J192: 2018-06-30 | O192: 0 | P192: 0 | Q192: =IF(OR(C192="",D192=1),"",VLOOKUP(WEEKDAY($C192,2),Backend!$F$5:$K$11,4,FALSE)) -> 07:24:00
C193: 2018-07-01 | D193: 1 | J193: 2018-07-01 | O193: 0 | P193: 0 | Q193: =IF(OR(C193="",D193=1),"",VLOOKUP(WEEKDAY($C193,2),Backend!$F$5:$K$11,4,FALSE)) -> 
C194: 2018-07-02 | D194: 1 | J194: 2018-07-02 | O194: 0 | P194: 0 | Q194: =IF(OR(C194="",D194=1),"",VLOOKUP(WEEKDAY($C194,2),Backend!$F$5:$K$11,4,FALSE)) -> 
B195: 27 | C195: 2018-07-03 | F195: 1 | J195: 2018-07-03 | O195: 0 | P195: 0 | Q195: =IF(OR(C195="",D195=1),"",VLOOKUP(WEEKDAY($C195,2),Backend!$F$5:$K$11,4,FALSE)) -> 07:24:00
C196: 2018-07-04 | F196: 1 | J196: 2018-07-04 | O196: 0 | P196: 0 | Q196: =IF(OR(C196="",D196=1),"",VLOOKUP(WEEKDAY($C196,2),Backend!$F$5:$K$11,4,FALSE)) -> 07:24:00
C197: 2018-07-05 | F197: 1 | J197: 2018-07-05 | O197: 0 | P197: 0 | Q197: =IF(OR(C197="",D197=1),"",VLOOKUP(WEEKDAY($C197,2),Backend!$F$5:$K$11,4,FALSE)) -> 07:24:00
C198: 2018-07-06 | F198: 1 | J198: 2018-07-06 | O198: 0 | P198: 0 | Q198: =IF(OR(C198="",D198=1),"",VLOOKUP(WEEKDAY($C198,2),Backend!$F$5:$K$11,4,FALSE)) -> 07:24:00
C199: 2018-07-07 | F199: 1 | J199: 2018-07-07 | O199: 0 | P199: 0 | Q199: =IF(OR(C199="",D199=1),"",VLOOKUP(WEEKDAY($C199,2),Backend!$F$5:$K$11,4,FALSE)) -> 07:24:00
C200: 2018-07-08 | D200: 1 | J200: 2018-07-08 | O200: 0 | P200: 0 | Q200: =IF(OR(C200="",D200=1),"",VLOOKUP(WEEKDAY($C200,2),Backend!$F$5:$K$11,4,FALSE)) -> 
C201: 2018-07-09 | D201: 1 | J201: 2018-07-09 | O201: 0 | P201: 0 | Q201: =IF(OR(C201="",D201=1),"",VLOOKUP(WEEKDAY($C201,2),Backend!$F$5:$K$11,4,FALSE)) -> 
B202: 28 | C202: 2018-07-10 | F202: 1 | J202: 2018-07-10 | O202: 0 | P202: 0 | Q202: =IF(OR(C202="",D202=1),"",VLOOKUP(WEEKDAY($C202,2),Backend!$F$5:$K$11,4,FALSE)) -> 07:24:00
C203: 2018-07-11 | F203: =IF(AND(Q203<>"",G203=""),1,"") -> 1 | G203: =IF(AND(K203<>"",$M203="Hjemmearbejdsdag"),1,"") ->  | J203: 2018-07-11 | O203: 0 | P203: 0 | Q203: =IF(OR(C203="",D203=1),"",VLOOKUP(WEEKDAY($C203,2),Backend!$F$5:$K$11,4,FALSE)) -> 07:24:00
... 173 more rows
